Cogmind - Beta 9.3 @@@ ROGUE MODE // 2019.12.20 @ 16:51:52 Player: Atherys Result: Destroyed by Y-45 Defender with Heavy Assault Rifle Performance ------------- Evolutions (1) 500 Regions Visited (2) 400 Robots Destroyed (33) 165 Value Destroyed (879) 879 Prototype IDs (1) 20 Alien Tech Used (0) 0 Bonus (0) 0 TOTAL SCORE: 1964 Bonus ------- None Cogmind --------- Core Integrity 0/400 Matter 39/300 Energy 425/425 System Corruption 0% Temperature Cool (30) Movement Walking (150) Ox1 Location -9/Materials Parts ------- > --- POWER (1) -------- Light Ion Engine > --- PROPULSION (3) --- Aluminum Leg > --- UTILITY (2) ------ Small Storage Unit Large Battery > --- WEAPON (3) ------- Light Assault Rifle Mini Grenade Launcher Mini Grenade Launcher > --- INVENTORY (6) ---- Disposable Heat Sink Advanced Targeting Computer Shield Generator Scythe Peak State ------------ > --- POWER ------------ Improved Ion Engine > --- PROPULSION ------- Aluminum Leg Aluminum Leg Aluminum Leg > --- UTILITY ---------- Heat Sink Small Storage Unit > --- WEAPON ----------- Scythe Scythe Scythe > --- INVENTORY -------- Ion Engine Light Ion Engine Large Battery Advanced Targeting Computer Improved Light Armor Plating Scythe [Rating: 17] Favorites ----------- Power Light Ion Engine Engine Light Ion Engine Propulsion Aluminum Leg Treads Light Treads Leg Aluminum Leg Wheel Compact Wheel Flight Unit Flight Unit Utility Small Storage Unit Device Heat Sink Storage Small Storage Unit Protection Improved Light Armor Plating Weapon Scythe Energy Gun Small Laser Ballistic Gun Heavy Assault Rifle Ballistic Cannon Improved Light Cannon Launcher Mini Grenade Launcher Slashing Weapon Scythe Build | -11 -10 -9 ------- Run | Scr Mat Mat Slots Evolved 2 | . . 2 Power . | . . . Propulsion 1 | . . 1 Utility . | . . . Weapon 1 | . . 1 Parts Attached 51 | 6 5 40 Power 7 | 1 1 5 Engine 7 | 1 1 5 Core . | . . . Reactor . | . . . Propulsion 15 | 2 2 11 Treads 1 | . . 1 Leg 9 | . 2 7 Wheel 2 | 2 . . Hover . | . . . Flight 3 | . . 3 Utility 7 | 1 1 5 Device 4 | . 1 3 Storage 2 | 1 . 1 Processor . | . . . Hackware . | . . . Protection 1 | . . 1 Artifact . | . . . Weapon 22 | 2 1 19 Energy Gun 7 | 2 1 4 Energy Cannon . | . . . Ballistic Gun 7 | . . 7 Ballistic Cannon 2 | . . 2 Launcher 2 | . . 2 Special Weapon . | . . . Impact Weapon . | . . . Slashing Weapon 4 | . . 4 Piercing Weapon . | . . . Special Melee Weapon . | . . . Unidentified Prototypes 1 | . . 1 Parts Lost 18 | . 2 16 Power 2 | . . 2 Propulsion 7 | . 1 6 Utility 3 | . . 3 Weapon 6 | . 1 5 Highest Loss Streak 7 | . 2 7 Average Slot Usage (%) 86 | . 93 85 Engine 11 | . 14 10 Treads 2 | . . 3 Leg 19 | . 3 22 Wheel 3 | . 23 . Flight 1 | . . 1 Device 5 | . 9 4 Storage 15 | . 14 15 Protection 1 | . . 1 Energy Gun 10 | . 26 7 Ballistic Gun 6 | . . 7 Ballistic Cannon 2 | . . 2 Launcher 2 | . . 2 Slashing Weapon 4 | . . 5 Naked Turns . | . . . Heaviest Build 21 | 11 14 21 Greatest Support 32 | 32 32 30 Greatest Overweight (x) 4 | . . 4 Average Overweight (x) . | . . . Largest Inventory Capacity 6 | 6 6 6 Average Capacity 5 | 5 6 6 Most Carried 6 | 4 6 6 Average Carried 5 | 1 4 5 Final Capacity 6 | 6 6 6 Final Carried 6 | 4 6 4 Class Distribution -------------------- 47% | Mutant 30% | Scavenger-Gunner 15% | Gunner 6% | Scavenger-Mutant Dominant Class ---------------- Mutant | -10/Materials Scavenger-Gunner | -9/Materials Resources | -11 -10 -9 ----------- Run | Scr Mat Mat Matter Collected 734 | 186 105 443 Remotely . | . . . Salvage Created 1137 | . 184 953 Parts 68 | . 10 58 Haulers Intercepted 1 | . . 1 Recyclers Shooed 1 | . . 1 Parts Field Recycled . | . . . Retrieved Matter . | . . . Parts Self-Destructed . | . . . Prevented . | . . . Kills | -11 -10 -9 ------- Run | Scr Mat Mat Combat Hostiles Destroyed 24 | . 4 20 Melee 8 | . . 8 Guns 9 | . 4 5 Cannons 3 | . . 3 AOE 4 | . . 4 Classes Destroyed 8 | . 1 7 Worker 1 | . . 1 Builder 2 | . . 2 Hauler 1 | . . 1 Recycler 3 | . . 3 Watcher 2 | . . 2 Swarmer 6 | . . 6 Grunt 13 | . 4 9 Sentry 5 | . . 5 Best Kill Streak 7 | . 2 7 Combat Bots Only 4 | . 2 4 Max Kills in Single Turn 2 | . 1 2 Gunslinging . | . . . Exploded 2 | . . 2 Melee 1 | . . 1 Uniques/NPCs Destroyed . | . . . Combat | -11 -10 -9 -------- Run | Scr Mat Mat Damage Taken 2408 | . 240 2168 Core 480 | . 65 415 Absorbed by Shields 17 | . . 17 Core Remaining (%) 87 | 100 74 . Volleys Fired 78 | . 19 59 Largest 3 | . 2 3 Hottest 105 | . 90 105 Shots Fired 134 | . 27 107 Gun 96 | . 27 69 Cannon 18 | . . 18 Launcher 20 | . . 20 Special . | . . . Kinetic 61 | . . 61 Thermal 32 | . 13 19 Explosive 20 | . . 20 Electromagnetic 21 | . 14 7 Robot Hit Streak 9 | . 7 9 Robot Miss Streak 5 | . 3 5 Penetration Max . | . . . Secondary Targets . | . . . Shots Hit Robots 107 | . 19 88 Core Hits 57 | . 9 48 Critical Hits 1 | . . 1 Critical Kills 1 | . . 1 Critical Parts Destroyed . | . . . Melee Attacks 40 | . . 40 Impact . | . . . Slashing 40 | . . 40 Piercing . | . . . Sneak Attacks 1 | . . 1 Combat Hostiles . | . . . Follow-up Attacks . | . . . Damage Inflicted 2663 | . 256 2407 Guns 827 | . 256 571 Cannons 189 | . . 189 Explosions 637 | . . 637 Melee 1010 | . . 1010 Ramming . | . . . Kinetic 522 | . . 522 Thermal 302 | . 122 180 Explosive 637 | . . 637 Electromagnetic 192 | . 134 58 Impact . | . . . Slashing 1010 | . . 1010 Piercing . | . . . Highest Corruption . | . . . Average Corruption . | . . . Corruption Purged . | . . . Overload Shots . | . . . Overflow Damage 68 | . . 68 Projectiles 11 | . . 11 Explosions 8 | . . 8 Melee 49 | . . 49 Knockbacks 4 | . . 4 Impact . | . . . Kinetic 4 | . . 4 Secondary . | . . . Self-Inflicted Damage 165 | . . 165 Shots 7 | . . 7 Rammed . | . . . Targets Rammed . | . . . Kicked . | . . . Crushed . | . . . Highest Temperature 234 | . 234 66 Average Temperature 41 | . 89 20 Received Heat Transfer 902 | . 138 764 Effects 1 | . 1 . Interference 1 | . 1 . Siege Activations . | . . . Robots Corrupted . | . . . Combat Hostiles . | . . . Parts Fried . | . . . Impact Corruptions . | . . . Robots Melted . | . . . Combat Hostiles . | . . . Parts Melted 1 | . . 1 Heat Transferred 804 | . 370 434 Parts Sabotaged . | . . . Parts Stolen . | . . . Parts Stripped . | . . . Power Chain Reactions . | . . . Missiles Intercepted . | . . . Alert | -11 -10 -9 ------- Run | Scr Mat Mat Peak Influence 236 | . 87 236 Average Influence 78 | . 44 89 Maximum Alert Level 1 | . . 1 Low Security (%) 98 | 100 100 98 Level 1 1 | . . 1 Level 2 . | . . . Level 3 . | . . . Level 4 . | . . . Level 5 . | . . . High Security . | . . . Max Security . | . . . Squads Dispatched 2 | . 1 1 Investigation . | . . . Extermination . | . . . Reinforcement 2 | . 1 1 Assault . | . . . Garrison . | . . . Intercept . | . . . Construction Impeded 1 | . . 1 Haulers Reinforced . | . . . Stealth | -11 -10 -9 --------- Run | Scr Mat Mat Distress Signals 4 | . . 4 Communications Jammed . | . . . Distress Signals . | . . . Times Spotted 44 | . 5 39 Peak Tracking Total 7 | . 2 7 Tactical Retreats 3 | . . 3 Traps | -11 -10 -9 ------- Run | Scr Mat Mat Traps Triggered . | . . . Indirectly . | . . . Trap Hack Attempts . | . . . Triggered . | . . . Disarmed . | . . . Reprogrammed . | . . . Reused . | . . . Traps Extracted . | . . . Installed . | . . . Triggered . | . . . Machines | -11 -10 -9 ---------- Run | Scr Mat Mat Machines Disabled 5 | . . 5 Max in Single Turn 2 | . . 2 Machines Sabotaged . | . . . Garrisons Compromised . | . . . Overloaded Fab Kills . | . . . Fab Network Shutdowns . | . . . Hacking | -11 -10 -9 --------- Run | Scr Mat Mat Machines Accessed 3 | . 1 2 Terminals 3 | . 1 2 Fabricators . | . . . Repair Stations . | . . . Recycling Units . | . . . Scanalyzers . | . . . Garrison Access . | . . . Total Hacks 9 | . 2 7 Successful 6 | . 1 5 Failed 3 | . 1 2 Catastrophic 1 | . . 1 Database Lockouts . | . . . Manual . | . . . Terminals 9 | . 2 7 Fabricators . | . . . Repair Stations . | . . . Recycling Units . | . . . Scanalyzers . | . . . Garrison Access . | . . . Terminal Hacks 6 | . 1 5 Robot Analysis 1 | . . 1 Branch Access Points 1 | . 1 . Emergency Access Points 1 | . . 1 Dispatch Records 1 | . . 1 Hauler Manifests 1 | . . 1 Zone Layout 1 | . . 1 Fabricator Hacks . | . . . Repair Station Hacks . | . . . Recycling Unit Hacks . | . . . Scanalyzer . | . . . Garrison Access Hacks . | . . . Unauthorized Hacks . | . . . Terminals . | . . . Fabricators . | . . . Repair Stations . | . . . Recycling Units . | . . . Scanalyzers . | . . . Garrison Access . | . . . Data Cores Recovered . | . . . Used . | . . . Hacking Detections 3 | . 1 2 Full Trace Events 1 | . . 1 Feedback Events . | . . . Feedback Blocked . | . . . Robot Schematics Acquired . | . . . Robots Built . | . . . Matter . | . . . Time . | . . . Total Robot Build Rating . | . . . Part Schematics Acquired . | . . . Parts Built . | . . . Matter . | . . . Time . | . . . Total Part Build Rating . | . . . Parts Repaired . | . . . Time . | . . . Parts Recycled . | . . . Recycled Matter . | . . . Retrieved Matter . | . . . Retrieved Components . | . . . Parts Scanalyzed . | . . . Part Schematics Acquired . | . . . Parts Damaged . | . . . Bothacking | -11 -10 -9 ------------ Run | Scr Mat Mat Used RIF Installer . | . . . Robots Hacked . | . . . Non-combat . | . . . Combat . | . . . Robot Hacks Applied . | . . . Relay Couplers Released . | . . . Robots Rewired . | . . . Allies Hacked . | . . . Hacks Repelled . | . . . Allies | -11 -10 -9 -------- Run | Scr Mat Mat Total Allies . | . . . Largest Group . | . . . Highest-Rated Group . | . . . Highest-Rated Ally . | . . . Total Orders . | . . . Ally Attacks . | . . . Total Damage . | . . . Kills . | . . . Allies Corrupted . | . . . Allies Melted . | . . . Intel | -11 -10 -9 ------- Run | Scr Mat Mat Robot Analysis Total 1 | . . 1 Derelict Logs Recovered . | . . . Drone Launches . | . . . Drone Recoveries . | . . . Exploration | -11 -10 -9 ------------- Run | Scr Mat Mat Turns Passed 1170 | 59 177 934 Spaces Moved 643 | 50 118 475 Core 17 | 7 . 10 Treads 15 | . . 15 Legs 443 | . 17 426 Wheels 144 | 43 101 . Hover . | . . . Flight 24 | . . 24 Fastest Speed 34 | 50 100 34 Average Speed 121 | 93 102 128 Slowest Speed 280 | 100 120 280 Overloaded Moves . | . . . Propulsion Burnouts . | . . . Robots Hopped . | . . . Cave-ins Triggered . | . . . Exploration Rate (%) 22 | 3 24 41 Regions Visited 2 Branch Regions . Pre-discovered Areas . | . . . Known Exits Taken . | . . . Unknown Exits Taken 2 | 1 1 . Scrap Searched . | . . . Spaces Dug . | . . . Terrain Destroyed 87 | . . 87 Melee . | . . . Projectile . | . . . AOE 87 | . . 87 Actions | -11 -10 -9 --------- Run | Scr Mat Mat Total 860 | 59 146 655 Wait . | . . . Move 641 | 49 117 475 Hop . | . . . Pick Up 20 | 4 4 12 Fast Attach 27 | 6 1 20 Attach 16 | . 3 13 Detach 7 | . . 7 Swap 8 | . 1 7 Drop 25 | . 1 24 Fire 78 | . 19 59 Melee 38 | . . 38 Ram . | . . . Kick . | . . . Crush . | . . . Escape Stasis . | . . . Rewire . | . . . Trap . | . . . Miscellaneous . | . . . Route ------- -11/Scrapyard -10/Materials (discovered 3 exits: *Mat / Min x2) -9/Materials (discovered 2 exits: [*Min] / [*Sto]) History --------- Turn | Location | Event 12 | -11/Scrapyard | Discovered new exit (range 16) 60 | -11/Scrapyard | Entered Materials 176 | -10/Materials | Identified exit to Mines 226 | -10/Materials | Discovered new exit (range 8) 237 | -10/Materials | Entered another Materials area 237 | -9/Materials | Evolved 2 slots: Propulsion x1, Weapon x1 605 | -9/Materials | Lost 3 parts (1p2w) 683 | -9/Materials | Discovered new exit (range 12) 756 | -9/Materials | Core integrity fell below 50% 822 | -9/Materials | Core integrity fell below 20% 829 | -9/Materials | Lost 7 parts (1p4n2u) 1114 | -9/Materials | Discovered new exit (range 16) 1171 | -9/Materials | Destroyed by Y-45 Defender with Heavy Assault Rifle Last Messages --------------- 01151_ U-05 Engineer builds a Wall. 01152_ Destroyed Lgt. Ion Engine. 01153_ U-05 Engineer lays Concrete. 01153_ W-16 Scout sends out distress signal. 01154_ U-05 Engineer lays Concrete. 01155_ The unstable cave ceiling collapses. 01155_ U-05 Engineer builds a Wall. 01155_ U-05 Engineer destroyed. 01155_ S-10 Pest destroyed. 01158_ Processing Tank disabled. 01159_ U-05 Engineer lays Concrete. 01160_ U-05 Engineer builds a Wall. 01162_ U-05 Engineer builds a Door. 01163_ U-05 Engineer lays Concrete. 01166_ U-05 Engineer builds a Wall. 01167_ W-16 Scout destroyed. 01167_ U-05 Engineer destroyed. 01168_ Aluminum Leg destroyed. 01170_ Repair Station disabled. 01171_ Lgt. Treads destroyed. Map ----- +----------------------------------------------------+ | ?????????????????????????????????????????????????? | | ?????????????????????????????????????????????????? | | ?????????????????????????????????????????????????? | | ?????????????????????????????????????????????????? | | ?????????????????????????????????????????????????? | | ?????????????????????????????????????????????????? | | ?????????????????????????????????????????????????? | | ?????????????????????????""??????????????????????? | | ????????????????????? #??""" """ ????????????????? | | ??????????????????# ?? [ ????????????????? | | ?????????????????? ## ###?????????????? | | ?????????????????"" ?????????????? | | ???????????????? "" ??????????????? | | ?????????????????"" ] ??????????????? | | ?????????????????? " ??????????????? | | ??????????????????? R"?????????????? | | ???????????????????? ""??????????????? | | ????????????????????## Y ######?????????? | | ??????????????????### ?????????? | | ??????????????????? ????????? | | ????????????????????## = ????????????? | | ???????????????????#### % ??????????????????? | | ?####????# ????????# % #???????????????????? | | ?# ##/######## * ##???????????????????? | | # u #?????????????????????? | | < + ""@#??###########?????????? | | # #### ] #?????????? | | ?# ## # # #?????????? | | ?# "!?????# ##+########] ! """ #?????????? | | ??????????# ]#= """ #?????????? | | ??????????# ]+] " """ #?????????? | | ??????????# !#] Y #?????????? | | ??????????# """ !%]#]"" #?????????? | | ??????????# """ *=]#! [#?????????? | | ########### """ !!! %###########?????????? | | # !! ##??????????????????? | | [ #% !! ##??????????????????? | | # % ### ########+#+#???????????????????? | | ! # #?# #??????????????????????????????? | | % % + #?# #??????????????????????????????? | | = # ###+######?????????????????????????? | | # # #?????????????????????????? | | ###########% # #?????????????????????????? | | #??# #* # #?????????????????????????? | | #### T / # #?????????????????????????? | | / # = + #?????????????????????????? | | #### #/ # #?????????????????????????? | | #??# ### # #?????????????????????????? | | #??# #?# # #?????????????????????????? | | #??########?# # ! #?????????????????????????? | +----------------------------------------------------+ Best States ------------- Heat Dissipation 38 Energy Generation 12 Energy Capacity 425 Matter Stores 300 Matter Capacity 300 Sight Range 16 Terrain Scan Density 10 Armor Coverage 150 Evasion (%) 63 Recoil Reduction 1 Item Schematics ----------------- None Robot Schematics ------------------ None Fabricated ------------ Nothing Alien Tech Used ----------------- None Achievements -------------- None Challenges ------------ None Game ------ Seed SystemSuperchargedShield Manual? 0 Play Time 00:23:14 Cumulative 3.7 hours Start 2019.12.20 @ 16:27:39 End 2019.12.20 @ 16:51:52 Sessions 1 Manual Loads 0 Difficulty Rogue Special Mode None Game No. 4 Rogue 4 Adventurer 0 Explorer 0 Win Type - Total 0 Types 0/0/0/0/0/0/0 Lore% 2 Gallery% 6 Achievement% 7 Wizard Run 0 Options --------- ASCII 0 Keyboard 1 Movement Vi Keybinds 0 Fullscreen 1 Font 18/Smallcaps Map View 76x50 Tactical HUD 1 Map Filters NONE Filters NONE Steam 1 RUN: 07fd97a9-d8f5-416c-8d11-05998877351d